bitfinex/quotes_SOLUSD_20241029
["timestamp","ask_amount","ask_price","bid_price","bid_amount"]
[1730190556912,4.14863942,180.56,180.52,20.0]
[1730190557115,7.52110733,180.57,180.52,20.0]
[1730190557545,4.14873794,180.56,180.5,20.0]
[1730190557835,7.52110733,180.57,180.52,20.0]
[1730190558039,23.28950733,180.58,180.52,27.52110733]
[1730190558240,4.14864984,180.57,180.52,27.52110733]
[1730190558431,23.28950733,180.58,180.52,27.52110733]
[1730190558736,4.14856153,180.57,180.52,27.52110733]
[1730190558920,15.7684,180.58,180.54,7.52110733]
[1730190559119,4.14848586,180.57,180.54,7.52110733]
[1730190559445,15.7684,180.58,180.54,7.52110733]
[1730190559631,4.14838559,180.57,180.54,7.52110733]
[1730190559935,13.95570733,180.63,180.56,7.52110733]
[1730190560139,4.14775001,180.62,180.57,7.52110733]
[1730190560451,4.14775001,180.61,180.57,7.52110733]
[1730190560656,7.52110733,180.62,180.57,7.52110733]
[1730190560939,4.14659343,180.61,180.57,7.52110733]
[1730190561243,6.4346,180.63,180.57,7.52110733]
[1730190561544,4.14518571,180.62,180.57,7.52110733]
[1730190561731,7.52110733,180.64,180.58,7.52110733]
[1730190561939,11.66626966,180.63,180.58,7.52110733]
[1730190562121,4.14516233,180.62,180.58,7.52110733]
[1730190562440,7.52110733,180.63,180.58,7.52110733]
[1730190562622,7.52110733,180.64,180.58,7.52110733]
[1730190562822,4.14393129,180.63,180.58,7.52110733]
[1730190563145,4.14393129,180.62,180.58,7.52110733]
[1730190563339,7.52110733,180.64,180.58,7.52110733]
[1730190563643,4.14266291,180.63,180.58,7.52110733]
[1730190563842,7.52110733,180.64,180.58,7.52110733]
[1730190564043,4.14267958,180.63,180.58,7.52110733]
[1730190564236,21.7569,180.65,180.58,7.52110733]
[1730190564444,11.66277074,180.64,180.58,7.52110733]
[1730190564644,4.14166341,180.63,180.59,7.52110733]
[1730190564943,7.52110733,180.64,180.58,7.52110733]
[1730190565148,4.14166364,180.63,180.58,7.52110733]
[1730190565326,7.52110733,180.64,180.58,7.52110733]
[1730190565639,4.14075189,180.63,180.58,7.52110733]
[1730190565829,7.52110733,180.64,180.58,7.52110733]
[1730190566030,4.14075136,180.63,180.58,7.52110733]
[1730190566229,7.52110733,180.64,180.58,7.52110733]
[1730190566454,4.13989181,180.63,180.58,7.52110733]
[1730190566655,21.7567,180.65,180.51,21.6906]
[1730190566656,29.27780733,180.65,180.59,7.52110733]
[1730190566954,4.13987401,180.64,180.59,7.52110733]
[1730190567248,29.27780733,180.65,180.59,7.52110733]
[1730190567440,4.13902369,180.64,180.59,7.52110733]
[1730190567639,29.27780733,180.65,180.59,7.52110733]
[1730190567860,4.1390454,180.64,180.61,7.52110733]
[1730190568156,16.2212,180.65,180.6,7.52110733]
[1730190568341,4.13806464,180.64,180.6,7.52110733]
[1730190568539,0.609393,180.66,180.63,7.52110733]
[1730190568944,0.609393,180.66,180.64,7.52110733]
[1730190569447,0.609393,180.66,180.65,7.52110733]
[1730190572159,0.609393,180.66,180.65,51.29799133]
[1730190574736,0.609393,180.66,180.65,43.776884]
[1730190575036,0.609393,180.66,180.65,51.29799133]
[1730190576140,0.609393,180.66,180.65,58.23536197]
[1730190576747,16.3293,180.77,180.65,58.23536197]
[1730190577062,7.52110733,180.75,180.7,7.52110733]
[1730190577363,5.5321,180.76,180.71,7.52110733]
[1730190578053,5.5321,180.76,180.72,7.52110733]
[1730190578756,13.05320733,180.76,180.71,7.52110733]
[1730190579337,7.52110733,180.74,180.69,7.52110733]
[1730190579536,7.52110733,180.74,180.7,20.0]
[1730190579956,7.52110733,180.74,180.68,7.52110733]
[1730190580256,7.52110733,180.74,180.69,7.52110733]
[1730190580460,16.3293,180.77,180.7,7.52110733]
[1730190580654,13.05320733,180.76,180.71,7.52110733]
[1730190580966,7.52110733,180.75,180.7,7.52110733]
[1730190581440,7.52110733,180.75,180.66,6.83737064]
[1730190581441,7.52110733,180.74,180.69,23.776884]
[1730190581640,13.05370733,180.75,180.69,31.29799133]
[1730190582049,7.52110733,180.74,180.68,20.0]
[1730190582363,13.05370733,180.75,180.69,7.52110733]
[1730190582561,5.5326,180.75,180.71,7.52110733]
[1730190583569,5.5321,180.76,180.71,7.52110733]
[1730190583868,13.05320733,180.76,180.71,7.52110733]
[1730190585162,7.52110733,180.75,180.7,7.52110733]
[1730190585862,7.52110733,180.75,180.68,23.776884]
[1730190586163,16.3293,180.77,180.71,31.29799133]
[1730190586468,7.52110733,180.76,180.71,7.52110733]
[1730190588462,23.85040733,180.77,180.72,31.29799133]
[1730190588644,5.5314,180.79,180.73,7.52110733]
[1730190588953,13.05200733,180.8,180.74,7.52110733]
[1730190589867,5.5309,180.8,180.75,7.52110733]
[1730190590046,13.05200733,180.8,180.75,7.52110733]
[1730190590245,35.75460733,180.81,180.76,7.52110733]
[1730190590465,7.52110733,180.8,180.75,20.0]
[1730190591172,7.52110733,180.79,180.73,7.52110733]
[1730190591343,7.52110733,180.79,180.74,20.0]
[1730190591543,5.5311,180.8,180.74,20.0]
[1730190591863,7.52110733,180.79,180.74,27.52110733]
[1730190592360,13.05220733,180.8,180.75,7.52110733]
[1730190593858,7.52110733,180.78,180.73,7.52110733]
[1730190594449,5.5311,180.8,180.74,31.29799133]
[1730190594765,13.05220733,180.8,180.74,31.29799133]
[1730190594963,16.277,180.81,180.75,7.52110733]
[1730190595170,29.32880733,180.81,180.76,7.52110733]
[1730190596362,5.5303,180.82,180.78,7.52110733]
[1730190597264,0.609393,180.84,180.8,7.52110733]
[1730190597565,0.609393,180.84,180.81,7.52110733]
[1730190597764,0.609393,180.84,180.82,7.52110733]
[1730190597969,0.609393,180.84,180.83,7.52110733]
[1730190598172,0.609393,180.84,180.83,31.29799133]
[1730190598546,0.609393,180.84,180.83,7.52110733]
[1730190598747,0.609393,180.84,180.8,23.776884]
[1730190598970,0.609393,180.84,180.81,7.52110733]
[1730190599374,0.609393,180.84,180.82,7.52110733]
[1730190599876,0.609393,180.84,180.8,23.776884]
[1730190600047,0.609393,180.84,180.8,31.29799133]
[1730190600246,0.609393,180.84,180.76,43.776884]
[1730190600456,0.609393,180.84,180.8,7.52110733]
[1730190600977,13.66040033,180.84,180.79,7.52110733]
[1730190601182,6.139293,180.84,180.79,7.52110733]
[1730190601677,0.609393,180.84,180.81,7.52110733]
[1730190601979,6.139093,180.84,180.81,7.52110733]
[1730190602157,6.139093,180.84,180.75,22.0054]
[1730190602361,7.52110733,180.82,180.75,22.0054]
[1730190602554,7.52110733,180.82,180.76,7.52110733]
[1730190602750,7.52110733,180.82,180.73,6.83737064]
[1730190602952,7.52110733,180.82,180.77,7.52110733]
[1730190603153,7.52110733,180.81,180.76,7.52110733]
[1730190603768,13.05170733,180.82,180.77,7.52110733]
[1730190606266,7.52110733,180.82,180.73,23.776884]
[1730190606582,7.52110733,180.81,180.77,23.776884]
[1730190606757,7.52110733,180.82,180.77,23.776884]
[1730190607084,6.2051,180.83,180.77,23.776884]
[1730190607266,6.139093,180.84,180.77,31.29799133]
[1730190607469,7.52110733,180.83,180.77,31.29799133]
[1730190607973,0.609393,180.84,180.81,7.52110733]
[1730190608484,0.609393,180.84,180.82,7.52110733]
[1730190608778,0.609393,180.84,180.81,7.52110733]
[1730190610570,0.609393,180.84,180.82,7.52110733]
[1730190613189,0.609393,180.84,180.83,7.52110733]
[1730190615863,0.609393,180.84,180.77,45.348084]
[1730190616065,0.609393,180.84,180.81,7.52110733]
[1730190616882,13.66020033,180.84,180.77,39.058784]
[1730190617056,13.66020033,180.84,180.79,7.52110733]
[1730190617757,13.66020033,180.84,180.75,6.83737064]
[1730190617758,0.609393,180.84,180.8,7.52110733]
[1730190619163,0.609393,180.84,180.81,7.52110733]
[1730190619978,0.609393,180.84,180.8,7.52110733]
[1730190621178,8.13050033,180.84,180.76,23.776884]
[1730190621488,8.13050033,180.84,180.79,7.52110733]
[1730190623190,7.52110733,180.83,180.76,23.776884]
[1730190623487,7.52110733,180.82,180.77,7.52110733]
[1730190623995,7.52110733,180.83,180.78,7.52110733]
[1730190624172,7.52110733,180.82,180.77,7.52110733]
[1730190624673,13.05120733,180.83,180.78,7.52110733]
[1730190625080,5.5301,180.83,180.8,7.52110733]
[1730190625280,5.5301,180.83,180.79,7.52110733]
[1730190625872,5.5301,180.83,180.74,23.776884]
[1730190625873,13.47691293,180.83,180.77,7.52110733]
[1730190626072,7.52110733,180.81,180.76,7.52110733]
[1730190626488,7.52110733,180.82,180.76,7.52110733]
[1730190626897,7.52110733,180.82,180.77,7.52110733]
[1730190627276,13.47691293,180.83,180.77,7.52110733]
[1730190627980,13.47691293,180.83,180.78,7.52110733]
[1730190628567,0.4257056,180.83,180.79,7.52110733]
[1730190628792,0.4257056,180.83,180.8,7.52110733]
[1730190629000,0.4257056,180.83,180.78,7.52110733]
[1730190629597,0.4257056,180.83,180.79,7.52110733]
[1730190630877,0.4257056,180.83,180.78,7.52110733]
[1730190632395,7.52110733,180.82,180.77,7.52110733]
[1730190632902,7.94681293,180.83,180.78,7.52110733]
[1730190633083,0.4257056,180.83,180.78,7.52110733]
[1730190633396,7.94681293,180.83,180.78,7.52110733]
[1730190635677,0.4257056,180.83,180.78,7.52110733]
[1730190636989,7.94681293,180.83,180.78,7.52110733]
[1730190638289,7.94681293,180.83,180.74,23.776884]
[1730190638290,7.52110733,180.82,180.74,23.776884]
[1730190638496,7.52110733,180.82,180.76,7.52110733]
[1730190640876,7.94681293,180.82,180.74,23.776884]
[1730190641082,7.52110733,180.81,180.74,23.776884]
[1730190641281,7.52110733,180.81,180.76,7.52110733]
[1730190641481,5.9561056,180.82,180.76,7.52110733]
[1730190641482,13.47721293,180.82,180.76,7.52110733]
[1730190641981,7.94681293,180.82,180.77,7.52110733]
[1730190644197,7.94681293,180.82,180.76,7.52110733]
[1730190644382,7.52110733,180.81,180.76,7.52110733]
[1730190644581,7.94681293,180.82,180.76,7.52110733]
[1730190645278,7.94681293,180.82,180.77,7.52110733]
[1730190646909,0.4257056,180.82,180.77,7.52110733]
[1730190650182,7.52110733,180.8,180.73,15.3595]
[1730190650382,7.52110733,180.8,180.74,9.73666674]
[1730190650584,7.52110733,180.81,180.76,7.52110733]
[1730190651690,7.52110733,180.79,180.73,23.776884]
[1730190651907,7.52110733,180.79,180.74,2.21558434]
[1730190652098,7.52110733,180.77,180.75,2.21558434]
[1730190652292,7.52110733,180.76,180.68,16.5536]
[1730190652495,30.08442932,180.8,180.69,2.21576365]
[1730190652496,7.52110733,180.75,180.69,2.21576365]
[1730190652697,7.52110733,180.76,180.7,9.73687098]
[1730190652910,7.52110733,180.76,180.71,2.21576365]
[1730190653083,7.52110733,180.76,180.72,2.21576365]
[1730190653411,7.52110733,180.76,180.73,2.21576365]
[1730190653707,7.52110733,180.76,180.69,23.776884]
[1730190653891,13.13292793,180.82,180.7,2.21589405]
[1730190654214,7.52110733,180.77,180.71,9.73700138]
[1730190654413,7.52110733,180.78,180.73,7.52110733]
[1730190655328,15.5349,180.83,180.77,7.52110733]
[1730190655610,4.14351523,180.82,180.77,7.52110733]
[1730190655799,4.14351523,180.81,180.77,7.52110733]
[1730190655986,23.05600733,180.83,180.77,7.52110733]
[1730190657199,23.05600733,180.83,180.78,2.21540148]
[1730190657405,7.52110733,180.82,180.76,7.52110733]
[1730190657711,7.52110733,180.82,180.77,2.21540136]
[1730190658011,7.52110733,180.8,180.78,2.21540136]
[1730190658195,7.52110733,180.8,180.75,2.21554367]
[1730190658514,7.52110733,180.8,180.76,2.21554367]
[1730190658699,7.52110733,180.8,180.74,7.52110733]
[1730190658902,7.52110733,180.8,180.75,2.21559307]
[1730190659208,7.52110733,180.8,180.76,2.21561985]
[1730190659392,7.52110733,180.8,180.74,7.52110733]
[1730190659587,7.52110733,180.79,180.75,2.21561956]
[1730190659788,7.52110733,180.79,180.76,2.21561956]
[1730190659991,15.5349,180.83,180.78,7.52110733]
[1730190660207,15.5349,180.83,180.79,7.52110733]
[1730190660414,15.5349,180.83,180.78,7.52110733]
[1730190661098,7.52110733,180.84,180.73,43.776884]
[1730190661303,19.07220733,180.85,180.79,7.52110733]
[1730190661618,4.14381139,180.84,180.79,7.52110733]
[1730190661794,19.07220733,180.85,180.79,7.52110733]
[1730190661994,4.14380466,180.84,180.79,7.52110733]
[1730190662215,19.07220733,180.85,180.79,7.52110733]
[1730190662413,4.14410552,180.84,180.79,7.52110733]
[1730190662600,19.07220733,180.85,180.79,7.52110733]
[1730190662919,4.1441254,180.84,180.79,7.52110733]
[1730190663115,19.07220733,180.85,180.79,7.52110733]
[1730190663293,4.14428714,180.84,180.79,7.52110733]
[1730190663494,19.07220733,180.85,180.79,7.52110733]
[1730190663696,4.14429451,180.84,180.8,7.52110733]
[1730190663994,5.5296,180.85,180.8,7.52110733]
[1730190664218,4.14425882,180.84,180.8,7.52110733]
[1730190664407,13.05020733,180.86,180.81,7.52110733]
[1730190664614,4.14422065,180.85,180.81,7.52110733]
[1730190664801,4.14422384,180.85,180.81,7.52110733]
[1730190665119,4.14422384,180.84,180.81,7.52110733]
[1730190665294,13.05020733,180.86,180.81,7.52110733]
[1730190665501,4.14419972,180.85,180.81,7.52110733]
[1730190665707,15.8251,180.87,180.81,7.52110733]
[1730190665903,4.14419538,180.86,180.81,7.52110733]
[1730190666112,4.14419538,180.85,180.81,7.52110733]
[1730190666303,23.34620733,180.87,180.81,7.52110733]
[1730190666503,23.34620733,180.87,180.82,7.52110733]
[1730190666707,4.14417983,180.86,180.82,7.52110733]
[1730190666923,4.14417983,180.85,180.81,7.52110733]
[1730190667131,28.87500733,180.87,180.81,7.52110733]
[1730190667297,4.14417983,180.86,180.81,7.52110733]
[1730190667598,4.14417983,180.85,180.81,7.52110733]
[1730190667798,28.87500733,180.87,180.81,7.52110733]
[1730190668001,4.14413868,180.86,180.81,7.52110733]
[1730190668227,4.14413868,180.85,180.81,7.52110733]
[1730190668521,28.87500733,180.87,180.81,7.52110733]
[1730190668710,4.1440945,180.86,180.81,7.52110733]
[1730190668890,28.87500733,180.87,180.82,7.52110733]
[1730190668891,4.1440945,180.85,180.82,7.52110733]
[1730190669095,23.34620733,180.87,180.82,7.52110733]
[1730190669296,4.14409654,180.86,180.83,7.52110733]
[1730190669624,15.8251,180.87,180.83,7.52110733]
[1730190669802,4.1437976,180.86,180.83,7.52110733]
[1730190670008,15.8251,180.87,180.75,23.976884]
[1730190670009,13.74180733,180.89,180.84,7.52110733]
[1730190670209,4.14377078,180.88,180.84,7.52110733]
[1730190670412,4.14377078,180.87,180.84,7.52110733]
[1730190670610,15.3184,180.91,180.85,7.52110733]
[1730190670812,4.14325592,180.9,180.85,7.52110733]
[1730190671008,4.14325592,180.89,180.85,7.52110733]
[1730190671216,4.14325592,180.88,180.85,7.52110733]
[1730190671434,4.14325592,180.87,180.85,7.52110733]
[1730190671732,7.52110733,180.9,180.84,7.52110733]
[1730190672013,4.14252735,180.89,180.84,7.52110733]
[1730190672219,4.14252735,180.88,180.84,7.52110733]
[1730190672425,7.52110733,180.9,180.84,7.52110733]
[1730190672627,4.14186038,180.89,180.84,7.52110733]
[1730190672792,4.14186038,180.88,180.84,7.52110733]
[1730190672996,7.52110733,180.9,180.84,7.52110733]
[1730190673194,4.14173344,180.89,180.84,7.52110733]
[1730190673410,20.846,180.91,180.85,7.52110733]
[1730190673593,4.14026388,180.9,180.86,7.52110733]
[1730190673794,22.83950733,180.91,180.86,7.52110733]
[1730190673997,4.14018778,180.9,180.86,7.52110733]
[1730190674218,22.83950733,180.91,180.86,7.52110733]
[1730190674426,11.66122849,180.9,180.85,7.52110733]
[1730190674625,7.52110733,180.9,180.85,7.52110733]
[1730190674807,7.52110733,180.89,180.8,22.22197064]
[1730190674999,15.3184,180.91,180.85,7.52110733]
[1730190675320,7.52110733,180.9,180.85,7.52110733]
[1730190675711,15.3184,180.91,180.85,7.52110733]
[1730190675914,7.52110733,180.9,180.85,7.52110733]
[1730190677535,28.36710733,180.91,180.85,7.52110733]
[1730190677901,28.36710733,180.91,180.86,7.52110733]
[1730190678324,15.3184,180.91,180.87,7.52110733]
[1730190678510,24.01210733,180.95,180.89,7.52110733]
[1730190678700,29.53850733,180.95,180.89,7.52110733]
[1730190679203,29.53850733,180.95,180.9,7.52110733]
[1730190679905,29.53850733,180.95,180.89,7.52110733]
[1730190680225,7.52110733,180.93,180.87,2.21399792]
[1730190680423,7.52110733,180.94,180.89,7.52110733]
[1730190680807,7.52110733,180.93,180.88,7.52110733]
[1730190681215,7.52110733,180.94,180.89,7.52110733]
[1730190682528,22.0174,180.95,180.9,7.52110733]
[1730190682833,16.491,180.95,180.9,7.52110733]
[1730190683207,0.6111259,180.97,180.92,7.52110733]
[1730190683402,0.6111259,180.97,180.93,7.52110733]
[1730190683820,0.6111259,180.97,180.94,7.52110733]
[1730190684413,0.6111259,180.97,180.95,7.52110733]
[1730190686233,0.6111259,180.97,180.96,7.52110733]
[1730190686417,0.6111259,180.97,180.96,31.29799133]
[1730190686927,0.6111259,180.97,180.96,23.776884]
[1730190687538,0.6111259,180.97,180.96,31.29799133]
[1730190688111,5.5215,181.11,180.97,20.1704]
[1730190688343,7.52110733,181.09,181.03,7.52110733]
[1730190688844,7.52110733,181.08,181.02,7.52110733]
[1730190689017,7.52110733,181.06,181.0,7.52110733]
[1730190689222,7.52110733,181.05,181.0,7.52110733]
[1730190689531,13.04400733,181.07,181.01,7.52110733]
[1730190690125,13.04350733,181.08,180.97,20.1704]
[1730190690442,7.52110733,181.05,180.97,13.8132]
[1730190690635,5.5224,181.08,180.99,7.52110733]
[1730190690836,7.52110733,181.05,181.0,7.52110733]
[1730190691224,7.52110733,181.05,180.99,7.52110733]
[1730190691432,13.04450733,181.05,180.99,7.52110733]
[1730190692345,13.04450733,181.05,181.0,7.52110733]
[1730190692835,13.04450733,181.05,180.98,23.776884]
[1730190693038,7.52110733,181.04,180.93,23.179]
[1730190693342,7.52110733,181.02,180.96,7.52110733]
[1730190694055,7.52110733,181.0,180.94,23.776884]
[1730190694219,7.52110733,181.0,180.94,7.52110733]
[1730190695135,7.52110733,180.99,180.94,7.52110733]
[1730190695740,5.5242,181.02,180.96,7.52110733]
[1730190695938,16.2917,181.03,180.99,7.52110733]
[1730190696147,20.6551,181.08,180.99,7.52110733]
[1730190696357,7.52110733,181.05,180.99,7.52110733]
[1730190696534,7.52110733,181.04,180.98,7.52110733]
[1730190696847,7.52110733,181.03,180.98,7.52110733]
[1730190697031,7.52110733,181.03,180.97,7.52110733]
[1730190697431,7.52110733,181.03,180.92,20.1]
[1730190697626,7.52110733,181.03,180.97,7.52110733]
[1730190698644,7.52110733,181.03,180.97,11.66895711]
[1730190698645,11.66895711,181.03,180.97,11.66895711]
[1730190699023,11.66895711,181.02,180.96,11.66895711]
[1730190699225,11.66895711,181.03,180.97,11.66895711]
[1730190700024,11.66895711,181.02,180.97,11.66895711]
[1730190700650,11.66895711,181.03,180.97,11.66895711]
[1730190701245,11.66895711,181.02,180.97,11.66895711]
[1730190703225,11.66895711,181.03,180.97,11.66895711]
[1730190705357,5.5227,181.07,181.0,11.66895711]
[1730190705559,11.66895711,181.05,181.0,11.66895711]
[1730190705846,15.1327,181.08,181.0,11.66895711]
[1730190705847,11.66895711,181.06,181.0,11.66895711]
[1730190706246,11.66895711,181.06,181.01,11.66895711]
[1730190706446,26.80165711,181.08,181.02,11.66895711]
[1730190706662,5.5227,181.07,181.0,35.44584111]
[1730190706830,11.66895711,181.06,181.01,11.66895711]
[1730190707149,11.66895711,181.07,181.02,11.66895711]
[1730190707355,11.66895711,181.07,181.01,11.66895711]
[1730190707541,11.66895711,181.07,181.02,11.66895711]
[1730190707855,26.80165711,181.08,181.02,11.66895711]
[1730190708352,5.5221,181.09,181.03,11.66895711]
[1730190708537,11.66895711,181.1,181.05,11.66895711]
[1730190708944,11.66895711,181.1,181.04,11.66895711]
[1730190709635,11.66895711,181.08,181.02,11.66895711]
[1730190709836,5.5215,181.11,180.97,28.15002096]
[1730190709837,11.66895711,181.07,181.01,11.66895711]
[1730190710845,11.66895711,181.08,181.02,11.66895711]
[1730190711460,17.19115711,181.09,181.03,11.66895711]
[1730190712235,11.66895711,181.09,181.04,11.66895711]
[1730190712548,11.66895711,181.08,181.02,11.66895711]
[1730190712746,11.66895711,181.08,181.03,11.66895711]
[1730190713343,5.5222,181.09,181.01,11.66895711]
[1730190713344,11.66895711,181.06,181.01,11.66895711]
[1730190713550,11.66895711,181.05,181.0,11.66895711]
[1730190713740,11.66895711,181.06,181.0,11.66895711]
[1730190713940,11.66895711,181.05,181.0,11.66895711]
[1730190716760,17.19245711,181.05,180.99,11.66895711]
[1730190716965,11.66895711,181.01,180.96,11.66895711]
[1730190717142,11.66895711,181.01,180.95,11.66895711]
[1730190717980,11.66895711,181.02,180.97,11.66895711]
[1730190718549,7.46841748,181.02,180.97,23.776884]
[1730190718842,7.46841748,181.01,180.96,7.46841748]
[1730190719658,7.46841748,181.0,180.92,16.5773]
[1730190719966,7.46841748,181.0,180.94,7.46841748]
[1730190720170,7.46841748,180.98,180.92,16.5773]
[1730190720375,7.46841748,181.0,180.95,7.46841748]
[1730190720666,7.46841748,181.0,180.94,7.46841748]
[1730190721137,7.46841748,180.99,180.94,7.46841748]
[1730190721874,7.46841748,180.99,180.93,31.24530148]
[1730190722162,7.46841748,180.95,180.9,7.46841748]
[1730190722554,7.46841748,180.96,180.9,7.46841748]
[1730190722957,22.0129,181.0,180.9,7.46841748]
[1730190722958,7.46841748,180.95,180.9,7.46841748]
[1730190723160,7.46841748,180.96,180.91,7.46841748]
[1730190723752,22.0129,181.0,180.93,7.46841748]
[1730190724047,7.46841748,180.99,180.93,7.46841748]
[1730190724248,7.46841748,180.98,180.93,7.46841748]
[1730190725756,7.46841748,180.99,180.93,7.46841748]
[1730190727064,16.4878,181.0,180.96,7.46841748]
[1730190727272,21.094,181.04,180.97,7.46841748]
[1730190727446,28.56241748,181.04,180.98,7.46841748]
[1730190727649,7.46841748,181.03,180.97,7.46841748]
[1730190728576,12.99251748,181.03,180.97,7.46841748]
[1730190729555,12.99251748,181.03,180.98,7.46841748]
[1730190729841,15.5702,181.04,180.99,7.46841748]
[1730190732172,15.5702,181.04,180.93,6.1312]
[1730190732173,15.5702,181.04,181.0,7.46841748]
[1730190735969,15.5702,181.04,180.99,7.46841748]
[1730190737257,15.5702,181.04,181.0,7.46841748]
[1730190738785,16.33671587,181.06,181.01,7.46841748]
[1730190739873,23.80513335,181.06,181.01,7.46841748]
[1730190740277,23.80513335,181.06,181.0,7.46841748]
[1730190741783,7.46841748,181.04,180.99,7.46841748]
[1730190741961,7.46841748,181.03,180.97,7.46841748]
[1730190742782,7.46841748,181.03,180.98,7.46841748]
[1730190743084,12.99191748,181.05,181.0,7.46841748]
[1730190743270,16.33671587,181.06,181.02,7.46841748]
[1730190743663,16.33671587,181.06,181.03,7.46841748]
[1730190744386,16.2874,181.08,181.03,7.46841748]
[1730190744584,16.2874,181.08,181.01,2.21205547]
[1730190744880,7.46841748,181.1,181.04,7.46841748]
[1730190745083,12.98991748,181.11,181.05,7.46841748]
[1730190745265,7.46841748,181.1,181.04,7.46841748]
[1730190745464,5.5215,181.11,181.04,7.46841748]
[1730190745783,7.46841748,181.1,181.04,7.46841748]
[1730190746687,12.98991748,181.11,181.05,7.46841748]
[1730190746875,7.46841748,181.1,181.04,7.46841748]
[1730190747080,7.46841748,181.09,181.03,7.46841748]
[1730190747267,7.46841748,181.07,181.02,2.21188556]
[1730190747467,7.46841748,181.09,181.03,7.46841748]
[1730190748290,7.46841748,181.08,181.02,7.46841748]
[1730190749285,7.46841748,181.09,181.03,7.46841748]
[1730190749680,7.46841748,181.08,181.03,7.46841748]
[1730190749982,7.46841748,181.09,181.03,7.46841748]
[1730190751706,7.46841748,181.08,181.02,7.46841748]
[1730190752767,7.46841748,181.08,181.03,7.46841748]
[1730190753163,12.99061748,181.09,181.03,7.46841748]
[1730190753363,12.99061748,181.09,181.04,7.46841748]
[1730190754490,12.99061748,181.09,181.03,7.46841748]
[1730190755471,7.46841748,181.08,180.98,20.0]
[1730190755786,12.99081748,181.08,181.03,7.46841748]
[1730190755974,7.46841748,181.09,181.04,7.46841748]
[1730190756980,7.46841748,181.09,180.99,2.21199962]
[1730190757185,7.46841748,181.09,181.04,7.46841748]
[1730190757878,7.46841748,181.09,181.0,23.776884]
[1730190757879,12.99041748,181.1,181.05,7.46841748]
[1730190761196,7.46841748,181.09,181.03,7.46841748]
[1730190761592,7.46841748,181.08,181.02,31.24530148]
[1730190761977,7.46841748,181.08,181.03,7.46841748]
[1730190764178,7.46841748,181.09,181.03,7.46841748]
[1730190764996,5.5215,181.11,180.98,20.0]
[1730190764997,7.46841748,181.1,181.04,7.46841748]
[1730190765691,5.0,181.12,181.07,7.46841748]
[1730190766104,12.46841748,181.12,181.07,7.46841748]
[1730190766294,17.98961748,181.12,181.07,7.46841748]
[1730190767009,17.98961748,181.12,181.06,7.46841748]
[1730190767479,7.46841748,181.11,181.05,7.46841748]
[1730190767988,17.98961748,181.12,181.06,7.46841748]
[1730190768196,10.5212,181.12,181.07,7.46841748]
[1730190768502,17.98961748,181.12,181.06,7.46841748]
[1730190768878,10.5212,181.12,181.07,7.46841748]
[1730190770406,17.98961748,181.12,181.07,7.46841748]
[1730190770992,10.5212,181.12,181.07,7.46841748]
[1730190771305,5.0,181.12,181.07,7.46841748]
[1730190772303,5.0,181.12,181.08,7.46841748]
[1730190774079,5.0,181.12,181.07,7.46841748]
[1730190774290,12.46841748,181.12,181.06,7.46841748]
[1730190775202,17.98961748,181.12,181.07,7.46841748]
[1730190776715,10.5212,181.12,181.07,7.46841748]
[1730190778012,17.98961748,181.12,181.06,7.46841748]
[1730190778195,7.46841748,181.11,181.05,7.46841748]
[1730190778788,7.46841748,181.09,181.04,7.46841748]
[1730190779209,7.46841748,181.1,181.04,7.46841748]
[1730190779808,15.2542,181.11,181.05,7.46841748]
[1730190779809,22.72261748,181.11,181.05,7.46841748]
[1730190779986,12.99021748,181.1,181.05,7.46841748]
[1730190780308,12.99021748,181.1,181.04,7.46841748]
[1730190781013,5.5218,181.1,181.06,7.46841748]
[1730190781183,5.5218,181.1,181.05,7.46841748]
[1730190781605,7.46841748,181.08,181.02,20.0]
[1730190781810,7.46841748,181.09,181.03,7.46841748]
[1730190781986,12.99021748,181.1,181.04,7.46841748]
[1730190782309,7.46841748,181.09,181.03,7.46841748]
[1730190782492,7.46841748,181.08,181.03,7.46841748]
[1730190782692,7.46841748,181.07,181.0,22.21206121]
[1730190782905,7.46841748,181.07,181.02,7.46841748]
[1730190784806,7.46841748,181.07,181.01,7.46841748]
[1730190785200,7.46841748,181.07,181.02,7.46841748]
[1730190785516,11.6113,181.1,181.03,7.46841748]
[1730190785695,7.46841748,181.08,181.03,7.46841748]
[1730190785896,7.46841748,181.09,181.04,7.46841748]
[1730190787106,6.0893,181.1,181.05,7.46841748]
[1730190787295,28.24411748,181.11,181.06,7.46841748]
[1730190787699,20.7757,181.11,181.06,7.46841748]
[1730190790501,5.0,181.12,181.08,7.46841748]
[1730190790708,5.0,181.12,181.09,7.46841748]
[1730190791298,5.0,181.12,181.05,45.98900244]
[1730190791607,5.0,181.12,181.09,7.46841748]
[1730190791807,5.0,181.12,181.1,7.46841748]
[1730190792606,5.0,181.12,181.11,7.46841748]
[1730190792805,5.0,181.12,181.05,43.776884]